Cogmind - Beta 17 @@@ ROGUE MODE // 2026.07.10 @ 23:33:53 Player: Storm Mk9 Result: Destroyed by Y-54 Guardian with Flak Gun Performance ------------- Evolutions (4) 2000 Regions Visited (10) 2000 Robots Destroyed (230) 1150 Value Destroyed (8121) 8121 Prototype IDs (38) 760 Alien Tech Used (0) 0 Bonus (2419) 2419 TOTAL SCORE: 16450 Bonus ------- High Alert Combat Kills 772 Follower Combat Kills 847 Registered with UFD 300 Met Optimus in HQ 500 Cogmind --------- Core Integrity 0/850 Matter 442/500 Energy 290/290 System Corruption 7% Temperature Cool (37) Movement Treading (240) Ox1 Location -6/Lower Caves Parts ------- > --- POWER (2) -------- Improved Deuterium Engine > --- PROPULSION (4) --- Medium Treads Improved Medium Treads > --- UTILITY (6) ------ Huge Storage Unit High-capacity Matter Pod 0b10 Decoder Chip [Generic] > --- WEAPON (3) ------- Heavy Flak Cannon > --- INVENTORY (25) --- Makeshift Power Source Fusion Compressor Plasma Cutter Heavy Mace Peak State ------------ > --- POWER ------------ Angular Momentum Engine Fission Core > --- PROPULSION ------- Light Treads Armored Treads Armored Treads Advanced Treads > --- UTILITY ---------- Cooling System Huge Storage Unit Improved Medium Armor Plating Improved Medium Armor Plating Reflective Plating Improved Hardlight Generator > --- WEAPON ----------- Precision Beam Rifle Force Rifle Heavy Machine Gun > --- INVENTORY -------- Cooled Ion Engine Cooled Ion Engine Improved Deuterium Engine Light Treads Improved Treads Armored Treads Advanced Treads Improved Medium Treads Improved Medium Treads Matter Compressor Hardened Medium Armor Plating Hardened Medium Armor Plating Improved Light Armor Plating Force Rifle Force Rifle Cooled Plasma Cannon Enhanced Autogun Enhanced Autogun Assault Cannon Rocket Launcher Improved Grenade Launcher Improved Grenade Launcher Remote Datajack Plasma Cutter Shock Maul [Rating: 63] Favorites ----------- Power Heavy Ion Engine Engine Heavy Ion Engine Power Core Fission Core Propulsion Armored Treads Treads Armored Treads Wheel Wheel Hover Unit Gravmag System Utility Hardened Medium Armor Plating Device Cooling System Storage Huge Storage Unit Processor 0b10 Decoder Chip [Generic] Protection Hardened Medium Armor Plating Weapon Enhanced Autogun Energy Gun Precision Beam Rifle Energy Cannon Cooled Plasma Cannon Ballistic Gun Enhanced Autogun Ballistic Cannon Improved Light Cannon Launcher Long-range Missile Launcher Special Weapon Plasma Cutter Impact Weapon Great Maul Special Melee Weapon Datajack Build | -11 -10 -10 -9 -9 -8 -8 -8 -8 -6 -6 ------- Run | Yrd Mat Min Mat Min Mat Sto Rec Scr Fac Low Slots Evolved 8 | . . . 2 . 2 . . . 4 . Power 1 | . . . . . . . . . 1 . Propulsion 2 | . . . . . 1 . . . 1 . Utility 4 | . . . 2 . 1 . . . 1 . Weapon 1 | . . . . . . . . . 1 . Parts Attached 105 | 7 9 2 17 5 15 8 . 1 30 11 Power 12 | 1 2 . 1 1 . 1 . . 4 2 Engine 11 | 1 2 . 1 1 . 1 . . 3 2 Core 1 | . . . . . . . . . 1 . Reactor . | . . . . . . . . . . . Propulsion 24 | 2 3 . 4 . 3 1 . . 7 4 Treads 22 | 2 3 . 4 . 3 1 . . 7 2 Leg . | . . . . . . . . . . . Wheel 1 | . . . . . . . . . . 1 Hover 1 | . . . . . . . . . . 1 Flight . | . . . . . . . . . . . Utility 35 | 2 2 1 8 1 6 1 . 1 10 3 Device 10 | 1 . . 4 . . . . . 5 . Storage 6 | 1 1 . 1 . . . . . 1 2 Processor 1 | . . . . . . . . . . 1 Hackware . | . . . . . . . . . . . Protection 18 | . 1 1 3 1 6 1 . 1 4 . Artifact . | . . . . . . . . . . . Weapon 34 | 2 2 1 4 3 6 5 . . 9 2 Energy Gun 12 | 1 1 . 2 2 4 1 . . 1 . Energy Cannon 2 | . . . . . . 1 . . 1 . Ballistic Gun 7 | 1 1 . . . 1 . . . 3 1 Ballistic Cannon 5 | . . 1 1 1 . . . . 1 1 Launcher 4 | . . . . . 1 . . . 3 . Special Weapon 1 | . . . . . . 1 . . . . Impact Weapon 2 | . . . . . . 2 . . . . Slashing Weapon . | . . . . . . . . . . . Piercing Weapon . | . . . . . . . . . . . Special Melee Weapon 1 | . . . 1 . . . . . . . Unidentified Prototypes 9 | . . . 1 . 4 2 . . 2 . Parts Lost 41 | . 1 1 3 1 2 . . . 27 6 Power 4 | . 1 . . . . . . . 2 1 Propulsion 12 | . . . . . . . . . 10 2 Utility 16 | . . 1 3 1 2 . . . 9 . Weapon 9 | . . . . . . . . . 6 3 Highest Loss Streak 20 | . 1 1 1 1 2 . . . 20 3 To Critical Strikes 1 | . . . . . . . . . 1 . Average Backups 22 | 2 16 19 20 24 24 24 25 25 25 5 Power 2 | 1 . 1 3 3 3 3 3 3 3 2 Propulsion 4 | . 4 6 5 5 4 5 5 5 5 . Utility 5 | . 6 8 6 7 4 4 5 5 4 . Weapon 8 | 1 2 3 5 8 10 11 11 10 10 2 Tool/Special . | . . . . . . . . . . . Unused Backups 44 | . 5 1 8 . 6 4 . 1 16 3 Power 8 | . . . 4 . . . . . 2 2 Propulsion 5 | . . . 3 . . 1 . . 1 . Utility 9 | . . 1 1 . 1 1 . . 5 . Weapon 21 | . 5 . . . 5 2 . 1 7 1 Tool/Special 1 | . . . . . . . . . 1 . Average Slot Usage (%) 96 | . 99 99 99 99 99 99 100 100 94 66 Engine 9 | . 14 14 11 11 9 9 9 9 6 11 Treads 24 | . 28 28 21 22 26 26 27 27 25 12 Device 9 | . 2 . 17 15 8 9 9 9 12 . Storage 9 | . 14 14 11 11 9 9 9 9 5 12 Protection 19 | . 11 14 15 17 26 26 27 27 16 . Energy Gun 9 | . 14 14 10 11 8 8 9 9 8 5 Ballistic Gun 6 | . 14 . . . 4 8 9 9 6 3 Ballistic Cannon 3 | . . 13 11 11 3 . . . . 5 Peak Build Rating 63 | 9 11 13 24 24 36 41 39 40 63 40 Average Rating 33 | 6 10 12 21 23 32 38 39 39 58 35 On Entrance 21 | . 9 11 12 24 23 36 39 39 40 5 Avg Prop Armor Cover (%) 4 | . . . . . . . . . 3 4 Naked Turns 50 | . . . . . . . . . 50 . Heaviest Build 201 | 13 57 58 106 111 119 124 115 115 201 115 Greatest Support 83 | 40 40 40 40 40 60 62 62 62 83 58 Greatest Overweight (x) 2 | . 1 1 2 2 2 2 1 1 2 2 Average Overweight (x) 1 | . . 1 1 2 1 1 1 1 1 . Largest Inventory Capacity 30 | 8 20 20 25 25 25 25 25 25 30 25 Average Capacity 23 | 7 17 20 21 25 25 25 25 25 27 24 Most Carried 30 | 5 20 20 25 25 25 25 25 25 30 12 Average Carried 22 | 2 16 19 20 24 24 24 25 24 25 5 Final Capacity 25 | 8 20 20 25 25 25 25 25 25 5 25 Final Carried 25 | 3 20 19 25 25 25 25 25 25 5 4 Class Distribution -------------------- 56% | Mutant 22% | Commander-Mutant 7% | Hauler-Tank 5% | Tank 3% | Derelict-Gunner Dominant Class ---------------- Mutant | -10/Materials Mutant | -10/Mines Mutant | -9/Materials Mutant | -9/Mines Mutant | -8/Materials Mutant | -8/Storage Commander-Mutant | -8/Recycling Commander-Mutant | -8/Scraptown Hauler-Tank | -6/Factory Derelict-Gunner | -6/Lower Caves Resources | -11 -10 -10 -9 -9 -8 -8 -8 -8 -6 -6 ----------- Run | Yrd Mat Min Mat Min Mat Sto Rec Scr Fac Low Matter Collected 5250 | 267 493 60 631 295 588 604 28 10 1697 577 Remotely . | . . . . . . . . . . . Salvage Created 8753 | 104 709 100 865 622 1315 1625 53 . 2935 425 Parts 421 | 4 39 5 59 36 65 70 5 . 132 6 Haulers Intercepted 15 | . 2 . 3 . 4 6 . . . . Recyclers Shooed 4 | . . . . 2 1 1 . . . . Parts Field Recycled . | . . . . . . . . . . . Retrieved Matter . | . . . . . . . . . . . Parts Self-Destructed 5 | . . . . . . . . . . 5 Prevented . | . . . . . . . . . . . Parts Restored . | . . . . . . . . . . . Kills | -11 -10 -10 -9 -9 -8 -8 -8 -8 -6 -6 ------- Run | Yrd Mat Min Mat Min Mat Sto Rec Scr Fac Low Combat Hostiles Destroyed 184 | . 18 5 26 20 25 26 1 . 57 6 Guns 108 | . 18 2 10 8 13 26 1 . 27 3 Cannons 50 | . . 3 15 12 9 . . . 9 2 AOE 24 | . . . 1 . 3 . . . 19 1 Classes Destroyed 16 | 2 5 . 1 2 1 . . . 5 . Worker 3 | . . . . . 1 . . . 2 . Builder 4 | . . . . . . . . . 4 . Tunneler 2 | 1 . . . 1 . . . . . . Hauler 15 | . 2 . 3 . 4 6 . . . . Recycler 5 | 1 . . . 2 1 . . . 1 . Mechanic 4 | . . . . . . . . . 4 . Operator 2 | . 1 . . . . . . . 1 . Watcher 11 | . 3 . 4 . 1 1 . . 2 . Swarmer 40 | . 6 2 7 9 3 2 . . 7 4 Grunt 84 | . 12 3 10 8 14 13 . . 24 . Brawler 4 | . . . . 1 . . . . 3 . Duelist 9 | . . . . 1 1 . . . 7 . Protector 1 | . . . . . . . . . 1 . Sentry 31 | . . . 9 1 7 11 1 . 2 . Hunter 7 | . . . . . . . . . 5 2 Programmer 8 | . . . . . . . . . 8 . Best Kill Streak 16 | 2 4 2 5 5 7 4 1 . 16 3 Combat Bots Only 12 | . 4 2 5 4 4 4 1 . 12 3 Max Kills in Single Turn 3 | 1 1 1 1 2 3 1 1 . 3 1 Gunslinging . | . . . . . . . . . . . Exploded 3 | . . . 1 . 2 . . . 3 1 Melee . | . . . . . . . . . . . Uniques/NPCs Destroyed . | . . . . . . . . . . . Combat | -11 -10 -10 -9 -9 -8 -8 -8 -8 -6 -6 -------- Run | Yrd Mat Min Mat Min Mat Sto Rec Scr Fac Low Hostile Shots Fired 1046 | . 70 15 110 78 120 108 6 . 479 60 Missed 265 | . 17 3 26 30 27 31 1 . 112 18 Hits 781 | . 53 12 84 48 93 77 5 . 367 42 Melee 36 | . . . . 5 3 . . . 28 . Projectile 745 | . 53 12 84 43 90 77 5 . 339 42 Critical Strikes 37 | . . . 1 3 4 3 1 . 25 . Part Disruptions 4 | . . . . . . . . . 4 . Damage Taken 11645 | . 663 146 922 516 1428 1114 66 . 6113 677 Core 1189 | . 82 10 69 6 111 57 . . 785 69 Absorbed by Shields 1461 | . . . 189 114 . . . . 1158 . Ignored by Resistances 234 | . . . . . . 72 6 . 156 . Regen/Repaired (Parts) 1950 | . 112 . 141 . 452 551 . 478 216 . Core Remaining (%) 78 | 100 . 63 . 81 . . . 69 . . Volleys Fired 601 | 5 60 9 85 55 86 106 7 . 149 39 Largest 3 | 2 2 2 2 2 2 2 2 . 3 3 Hottest 171 | 60 85 98 98 98 98 86 86 . 171 130 Shots Fired 1210 | 10 117 18 140 108 152 212 14 . 362 77 Gun 905 | 10 117 9 55 54 104 212 14 . 274 56 Cannon 274 | . . 9 85 54 46 . . . 60 20 Launcher 31 | . . . . . 2 . . . 28 1 Special . | . . . . . . . . . . . Kinetic 585 | 5 60 9 85 54 84 106 7 . 139 36 Thermal 567 | . 35 9 55 54 66 106 7 . 195 40 Explosive 31 | . . . . . 2 . . . 28 1 Electromagnetic 27 | 5 22 . . . . . . . . . Robot Hit Streak 25 | 3 12 6 13 13 12 25 8 . 23 13 Robot Miss Streak 8 | 1 7 6 6 3 4 2 1 . 5 8 Penetration Max . | . . . . . . . . . . . Secondary Targets 12 | . 2 . . . 1 2 . . 7 . Max Gunslinging Chain 1 | . 1 . . . 1 1 . . 1 . Shots Hit Robots 819 | 6 84 15 102 63 98 152 10 . 239 50 Core Hits 502 | 3 61 15 91 26 47 54 3 . 167 35 Critical Kills 2 | . . . . . . . . . 2 . Critical Parts Destroyed 2 | . . . . . . . . . 2 . Critical Strikes 40 | . 2 1 2 3 6 8 1 . 12 5 Burn 28 | . . . . 2 4 8 1 . 8 5 Meltdown 1 | . . . . . . . . . 1 . Destroy 3 | . . . . . . . . . 3 . Blast 6 | . . 1 2 1 2 . . . . . Corrupt 2 | . 2 . . . . . . . . . Melee Attacks 5 | . . . 1 . . 4 . . . . Impact 4 | . . . . . . 4 . . . . Slashing . | . . . . . . . . . . . Piercing . | . . . . . . . . . . . Sneak Attacks 1 | . . . 1 . . . . . . . Combat Hostiles . | . . . . . . . . . . . Follow-up Attacks . | . . . . . . . . . . . Damage Inflicted 20280 | 75 1129 265 1912 1241 2376 2958 181 . 9023 1120 Guns 11231 | 75 1081 106 720 540 1273 2958 181 . 3662 635 Cannons 3999 | . . 159 1096 701 645 . . . 1103 295 Explosions 5050 | . 48 . 96 . 458 . . . 4258 190 Melee . | . . . . . . . . . . . Ramming . | . . . . . . . . . . . Kinetic 6804 | 21 442 159 1096 701 1042 1234 71 . 1613 425 Thermal 8281 | . 452 106 816 540 876 1724 110 . 3152 505 Explosive 4736 | . . . . . 458 . . . 4088 190 Electromagnetic 459 | 54 235 . . . . . . . 170 . Impact . | . . . . . . . . . . . Slashing . | . . . . . . . . . . . Piercing . | . . . . . . . . . . . Highest Corruption 7 | . . . 2 2 . . . . 7 7 Average Corruption 3 | . . . 2 2 . . . . 2 7 Corruption Purged . | . . . . . . . . . . . Corruption Blocked . | . . . . . . . . . . . Effects 90 | . . . 4 27 . . . . 13 46 Message Errors 21 | . . . . 9 . . . . 2 10 Matter Fused 21 | . . . 2 6 . . . . 2 11 Heat Flow Errors 15 | . . . 1 3 . . . . 2 9 Energy Discharges 11 | . . . 1 3 . . . . 2 5 Parts Rejected 1 | . . . . . . . . . 1 . Data Loss (minor) 5 | . . . . 2 . . . . 1 2 Data Loss (major) 2 | . . . . 1 . . . . . 1 Misfires 7 | . . . . 1 . . . . 1 5 Alerts 2 | . . . . . . . . . . 2 Weapon Failures 5 | . . . . 2 . . . . 2 1 Overload Shots . | . . . . . . . . . . . Overflow Damage 157 | . . . 10 30 31 . . . 86 . Projectiles 49 | . . . 10 30 . . . . 9 . Explosions 108 | . . . . . 31 . . . 77 . Melee . | . . . . . . . . . . . Knockbacks 28 | . . 2 11 5 4 . . . 1 5 Impact . | . . . . . . . . . . . Kinetic 26 | . . 2 10 5 3 . . . 1 5 Secondary 2 | . . . 1 . 1 . . . . . Self-Inflicted Damage 518 | . 69 . 83 . . . . . 366 . Shots 11 | . 1 . 1 . . . . . 9 . Rammed . | . . . . . . . . . . . Targets Rammed . | . . . . . . . . . . . Kicked . | . . . . . . . . . . . Crushed . | . . . . . . . . . . . Highest Temperature 593 | . 273 190 192 255 227 107 72 . 593 417 Average Temperature 98 | . 65 81 48 116 46 30 31 . 162 130 Received Heat Transfer 3029 | . 279 57 254 128 711 531 45 . 988 36 Effects 38 | . 1 . . . 1 . . . 33 3 Shutdowns 10 | . . . . . . . . . 9 1 Energy Bleed 2 | . 1 . . . 1 . . . . . Interference 7 | . . . . . . . . . 6 1 Matter Decay 3 | . . . . . . . . . 3 . Short Circuit 3 | . . . . . . . . . 3 . Damage (minor) 4 | . . . . . . . . . 3 1 Damage (major) 6 | . . . . . . . . . 6 . Damage (core) 3 | . . . . . . . . . 3 . Siege Activations . | . . . . . . . . . . . Martial Activations . | . . . . . . . . . . . Shielding Activations . | . . . . . . . . . . . Robots Disrupted . | . . . . . . . . . . . Combat Hostiles . | . . . . . . . . . . . Robots Corrupted . | . . . . . . . . . . . Combat Hostiles . | . . . . . . . . . . . Parts Fried 3 | 1 2 . . . . . . . . . Impact Corruptions . | . . . . . . . . . . . Robots Melted 2 | . . . . . . . . . 2 . Combat Hostiles 2 | . . . . . . . . . 2 . Parts Melted 38 | . . . . 2 4 7 . . 22 3 Heat Transferred 16650 | . 560 135 1006 1369 1998 3700 293 . 6109 1480 Parts Sabotaged . | . . . . . . . . . . . Parts Stolen . | . . . . . . . . . . . Parts Stripped . | . . . . . . . . . . . Power Chain Reactions 1 | . 1 . . . . . . . . . Alert | -11 -10 -10 -9 -9 -8 -8 -8 -8 -6 -6 ------- Run | Yrd Mat Min Mat Min Mat Sto Rec Scr Fac Low Maximum Alert Level 4 | . 1 . 2 . 1 2 1 . 4 . Low Security (%) 48 | 100 75 100 14 100 48 35 83 . 17 . Level 1 34 | . 24 . 84 . 51 19 16 . 37 . Level 2 13 | . . . . . . 44 . . 30 . Level 3 2 | . . . . . . . . . 12 . Level 4 . | . . . . . . . . . 1 . Level 5 . | . . . . . . . . . . . High Security . | . . . . . . . . . . . Max Security . | . . . . . . . . . . . Peak Influence 1204 | 5 283 90 400 146 351 696 271 . 1204 . Initial 247 | . . 90 2 129 33 142 247 . . . Average 238 | . 99 10 287 63 208 375 74 . 414 . Influence Increases 7609 | 10 715 130 1034 619 943 1411 177 . 2430 140 Destroy 0b10 Robot/C 4120 | . 360 100 520 440 500 720 60 . 1300 120 Destroy 0b10 Robot/NC 280 | 10 30 . 35 15 35 40 40 . 75 . Destroy Leader 1014 | . 100 30 174 70 140 206 . . 274 20 Allied During Kill 318 | . . . . 18 . 184 22 . 94 . Successful Hack 332 | . 19 . 73 . 60 56 32 . 92 . Select Force Hacks 90 | . 30 . 60 . . . . . . . Disable Machine 435 | . 90 . 60 15 75 75 . . 120 . Anti-Garrison Action 200 | . . . . . . . . . 200 . Destroy Structure 355 | . 41 . 37 1 43 10 23 . 200 . Lose Combat Pursuer 465 | . 45 . 75 60 90 120 . . 75 . Influence Decreases 7310 | 10 484 353 710 866 691 1113 812 . 1226 1045 Entered New Map 1432 | . . 141 6 203 52 195 388 . . 447 Time Decay 5032 | 10 474 202 674 613 619 718 424 . 760 538 Lost Part 410 | . 10 10 30 10 20 . . . 270 60 Lost Ally 436 | . . . . 40 . 200 . . 196 . Squads Dispatched 45 | . 5 . 3 1 7 7 . . 22 . Investigation 14 | . 3 . 2 1 3 1 . . 4 . Extermination 8 | . . . . . . . . . 8 . Reinforcement 7 | . 2 . 1 . . 1 . . 3 . Assault 7 | . . . . . . 1 . . 6 . Garrison 9 | . . . . . 4 4 . . 1 . Intercept . | . . . . . . . . . . . Searches Triggered . | . . . . . . . . . . . Construction Impeded 1 | . . . . . . . . . 1 . Haulers Reinforced . | . . . . . . . . . . . Active Scanning Responses . | . . . . . . . . . . . Cargo Convoy Interrupts . | . . . . . . . . . . . Stealth | -11 -10 -10 -9 -9 -8 -8 -8 -8 -6 -6 --------- Run | Yrd Mat Min Mat Min Mat Sto Rec Scr Fac Low Distress Signals 13 | . . . 3 . 5 3 . . 2 . Communications Jammed . | . . . . . . . . . . . Distress Signals . | . . . . . . . . . . . Times Spotted 282 | . 28 5 40 26 41 39 5 . 88 10 Peak Tracking Total 9 | . 5 2 7 4 5 7 2 . 9 5 Tactical Retreats 23 | . 2 . 3 4 6 4 . . 4 . Traps | -11 -10 -10 -9 -9 -8 -8 -8 -8 -6 -6 ------- Run | Yrd Mat Min Mat Min Mat Sto Rec Scr Fac Low Traps Triggered 5 | . 2 . 2 . 1 . . . . . Indirectly . | . . . . . . . . . . . Trap Hack Attempts . | . . . . . . . . . . . Triggered . | . . . . . . . . . . . Disarmed . | . . . . . . . . . . . Reprogrammed . | . . . . . . . . . . . Reused . | . . . . . . . . . . . Traps Extracted . | . . . . . . . . . . . Installed 5 | . . . . 5 . . . . . . Triggered . | . . . . . . . . . . . Machines | -11 -10 -10 -9 -9 -8 -8 -8 -8 -6 -6 ---------- Run | Yrd Mat Min Mat Min Mat Sto Rec Scr Fac Low Machines Disabled 30 | . 6 . 4 2 5 5 . . 8 . Max in Single Turn 6 | . 6 . 2 1 1 1 . . 3 . Garrison Access 1 | . . . . . . . . . 1 . Machines Repaired . | . . . . . . . . . . . Machines Dismantled 1 | . . . . . . 1 . . . . Machines Sabotaged . | . . . . . . . . . . . Overloaded Fab Kills . | . . . . . . . . . . . Hacking | -11 -10 -10 -9 -9 -8 -8 -8 -8 -6 -6 --------- Run | Yrd Mat Min Mat Min Mat Sto Rec Scr Fac Low Machines Accessed 71 | . 7 . 13 1 10 13 4 6 17 . Terminals 41 | . 4 . 8 1 7 10 4 . 7 . Fabricators 4 | . . . . . . . . . 4 . Repair Stations 7 | . 1 . 1 . 1 2 . . 2 . Recycling Units 7 | . 2 . 2 . 1 . . . 2 . Scanalyzers 3 | . . . 2 . . . . . 1 . Garrison Access 3 | . . . . . 1 1 . . 1 . Total Hacks 241 | . 22 . 46 2 43 49 17 27 35 . Successful 152 | . 14 . 23 . 28 31 13 27 16 . Failed 87 | . 8 . 22 2 15 18 4 . 18 . Catastrophic 10 | . . . . 1 2 2 1 . 4 . Database Lockouts 2 | . . . 1 . . . . . 1 . Manual 137 | . 15 . 32 2 25 31 12 . 20 . Terminals 132 | . 12 . 26 2 28 32 17 . 15 . Fabricators 9 | . . . . . . . . . 9 . Repair Stations 34 | . 3 . 4 . 9 13 . . 5 . Recycling Units 22 | . 7 . 8 . 5 . . . 2 . Scanalyzers 10 | . . . 8 . . . . . 2 . Garrison Access 7 | . . . . . 1 4 . . 2 . Terminal Hacks 55 | . 4 . 3 . 10 3 4 27 4 . Record 26 | . . . . . . . . 26 . . Part Schematic 1 | . . . 1 . . . . . . . Robot Analysis 5 | . 2 . . . 3 . . . . . Prototype ID Bank 12 | . 1 . 1 . 4 1 2 . 3 . Open Door 1 | . . . . . . 1 . . . . Branch Access Points 2 | . . . 1 . . . . . 1 . Terminal Index 1 | . . . . . 1 . . . . . Alert Level 1 | . . . . . 1 . . . . . Locate Traps 2 | . 1 . . . . 1 . . . . Transport Status 1 | . . . . . . . 1 . . . Registered Prototypes 2 | . . . . . 1 . 1 . . . Proto ID Catalog 1 | . . . . . . . . 1 . . Fabricator Hacks . | . . . . . . . . . . . Repair Station Hacks 27 | . 2 . 4 . 8 11 . . 2 . Scan Component 14 | . 1 . 2 . 4 6 . . 1 . Repair 13 | . 1 . 2 . 4 5 . . 1 . Recycling Unit Hacks 4 | . 2 . 1 . 1 . . . . . Report Inventory 4 | . 2 . 1 . 1 . . . . . Scanalyzer 5 | . . . 4 . . . . . 1 . Retrieve Study 5 | . . . 4 . . . . . 1 . Garrison Access Hacks . | . . . . . . . . . . . Unauthorized Hacks 61 | . 6 . 11 . 9 17 9 . 9 . Terminals 40 | . 5 . 7 . 5 13 9 . 1 . Botnet 11 | . 1 . 1 . 2 3 3 . 1 . Disrupt 3 | . . . . . . 2 1 . . . Operators 3 | . . . . . 1 1 1 . . . Skim 23 | . 4 . 6 . 2 7 4 . . . Fabricators 4 | . . . . . . . . . 4 . Report 2 | . . . . . . . . . 2 . Fabnet 2 | . . . . . . . . . 2 . Repair Stations 1 | . . . . . . . . . 1 . Mechanics 1 | . . . . . . . . . 1 . Recycling Units 10 | . 1 . 3 . 4 . . . 2 . Monitor 1 | . . . . . 1 . . . . . Reject 2 | . . . 1 . 1 . . . . . Recyclers 1 | . . . . . 1 . . . . . Mask 2 | . . . 1 . 1 . . . . . Tunnel 2 | . 1 . 1 . . . . . . . Fedlink 2 | . . . . . . . . . 2 . Scanalyzers 1 | . . . 1 . . . . . . . Extract 1 | . . . 1 . . . . . . . Garrison Access 5 | . . . . . . 4 . . 1 . Broadcast 1 | . . . . . . 1 . . . . Reprogram 1 | . . . . . . 1 . . . . Intercept 1 | . . . . . . 1 . . . . Watchers 1 | . . . . . . 1 . . . . Jam 1 | . . . . . . . . . 1 . Data Cores Recovered 1 | . . . . . . . . . 1 . Used . | . . . . . . . . . . . Hacking Detections 57 | . 6 . 12 1 9 11 4 . 14 . Full Trace Events 4 | . . . . 1 2 . . . 1 . Feedback Events . | . . . . . . . . . . . Feedback Blocked . | . . . . . . . . . . . Robot Schematics Acquired . | . . . . . . . . . . . Robots Built . | . . . . . . . . . . . Authchips . | . . . . . . . . . . . Time . | . . . . . . . . . . . Total Robot Build Rating . | . . . . . . . . . . . Part Schematics Acquired 2 | . . . 2 . . . . . . . Parts Built . | . . . . . . . . . . . Authchips . | . . . . . . . . . . . Time . | . . . . . . . . . . . Total Part Build Rating . | . . . . . . . . . . . Part Studies Acquired 5 | . . . 4 . . . . . 1 . Parts Repaired 13 | . 1 . 2 . 4 5 . . 1 . Time 467 | . 32 . 58 . 168 190 . . 19 . Parts Recycled . | . . . . . . . . . . . Recycled Matter . | . . . . . . . . . . . Retrieved Matter . | . . . . . . . . . . . Retrieved Components . | . . . . . . . . . . . Parts Scanalyzed . | . . . . . . . . . . . Part Schematics Acquired . | . . . . . . . . . . . Parts Damaged . | . . . . . . . . . . . Bothacking | -11 -10 -10 -9 -9 -8 -8 -8 -8 -6 -6 ------------ Run | Yrd Mat Min Mat Min Mat Sto Rec Scr Fac Low Used RIF Installer . | . . . . . . . . . . . Robots Hacked 1 | . . . 1 . . . . . . . Non-combat 1 | . . . 1 . . . . . . . Combat . | . . . . . . . . . . . Robot Hacks Applied 1 | . . . 1 . . . . . . . check_alert 1 | . . . 1 . . . . . . . Relay Couplers Released . | . . . . . . . . . . . Fabnet Peak Effective % . | . . . . . . . . . . . Robots Rewired 16 | . . . . . . . 16 . . . Allies Hacked 1 | . . . . . . . . . 1 . Hacks Repelled . | . . . . . . . . . . . Allies | -11 -10 -10 -9 -9 -8 -8 -8 -8 -6 -6 -------- Run | Yrd Mat Min Mat Min Mat Sto Rec Scr Fac Low Total Allies 31 | . . . . 3 . 12 16 . . . Largest Group 18 | . . . . 3 1 12 18 18 17 . Highest-Rated Group 333 | . . . . 40 16 204 333 333 311 . Highest-Rated Ally 34 | . . . . 16 16 29 34 34 34 . Initial UFD Resources 36 | . . . . . . . . . 22 36 Total Orders 3 | . . . . . . . . 3 . . STAY 1 | . . . . . . . . 1 . . FOLLOW 2 | . . . . . . . . 2 . . Ally Attacks 178 | . . . . 11 1 77 21 . 68 . Total Damage 3504 | . . . . 96 14 1029 931 . 1434 . Kills 32 | . . . . 2 . 11 7 . 12 . Allies Corrupted . | . . . . . . . . . . . Allies Melted . | . . . . . . . . . . . Intel | -11 -10 -10 -9 -9 -8 -8 -8 -8 -6 -6 ------- Run | Yrd Mat Min Mat Min Mat Sto Rec Scr Fac Low Active Infowar (turns) 1845 | 43 408 . . . . . . . . 1394 Terrain 451 | 43 408 . . . . . . . . . Decoding 1394 | . . . . . . . . . . 1394 Robot Analysis Total 5 | . 2 . . . 3 . . . . . Derelict Logs Recovered 3 | . . 1 . 2 . . . . . . Drone Launches . | . . . . . . . . . . . Drone Recoveries . | . . . . . . . . . . . Exploration | -11 -10 -10 -9 -9 -8 -8 -8 -8 -6 -6 ------------- Run | Yrd Mat Min Mat Min Mat Sto Rec Scr Fac Low Turns Passed 27279 | 122 2510 1582 3836 2081 2220 3359 1631 3925 4474 1539 Spaces Moved 8884 | 49 876 564 1047 552 627 947 587 1577 1426 632 Core 179 | 8 . . . . . . . . 102 69 Treads 8705 | 41 876 564 1047 552 627 947 587 1577 1324 563 Legs . | . . . . . . . . . . . Wheels . | . . . . . . . . . . . Hover . | . . . . . . . . . . . Flight . | . . . . . . . . . . . Fastest Speed 50 | 50 160 240 240 330 250 241 241 241 50 50 Average Speed 250 | 142 224 240 271 330 250 245 241 241 261 219 Slowest Speed 330 | 160 240 240 330 330 330 330 241 241 325 320 Overloaded Moves . | . . . . . . . . . . . Propulsion Burnouts . | . . . . . . . . . . . Robots Hopped . | . . . . . . . . . . . Potential Cave-ins . | . . . . . . . . . . . Cave-ins Triggered . | . . . . . . . . . . . Exploration Rate (%) 75 | 5 97 98 91 88 64 93 96 94 45 54 Regions Visited 10 Branch Regions 6 Pre-discovered Areas 11 | . 1 1 6 . . 2 . . 1 . Known Exits Taken 5 | . . . 1 1 1 1 . . 1 . Unknown Exits Taken 5 | 1 1 1 . . . . 1 1 . . Scrap Searched 10 | . . 2 . 1 . . . 6 . 1 Spaces Dug 2 | . . . . . . . . . 2 . Terrain Destroyed 371 | . 44 . 38 1 61 . . . 210 17 Melee . | . . . . . . . . . . . Projectile 26 | . . . 8 1 2 . . . 15 . AOE 345 | . 44 . 30 . 59 . . . 195 17 Terrain Rammed . | . . . . . . . . . . . Walls Destroyed . | . . . . . . . . . . . Machines Disabled . | . . . . . . . . . . . Actions | -11 -10 -10 -9 -9 -8 -8 -8 -8 -6 -6 --------- Run | Yrd Mat Min Mat Min Mat Sto Rec Scr Fac Low Total 12856 | 91 1308 776 1913 705 1143 1782 793 1703 1918 724 Wait 2830 | 21 325 199 717 81 379 684 49 123 226 26 Move 8874 | 48 875 563 1046 551 626 946 586 1576 1425 632 Hop . | . . . . . . . . . . . Pick Up 125 | 10 25 1 22 5 13 6 . 1 31 11 Fast Attach 40 | . 3 1 6 . 12 8 . 1 9 . Attach 66 | 7 1 1 7 5 4 . . . 29 12 Detach 2 | . . . . . . . . . 2 . Swap 54 | . 6 . 9 1 6 10 . . 22 . Drop 91 | . 13 2 20 2 17 10 . 2 25 . Fire 601 | 5 60 9 85 55 86 106 7 . 149 39 Melee 5 | . . . 1 . . 4 . . . . Ram . | . . . . . . . . . . . Kick . | . . . . . . . . . . . Crush . | . . . . . . . . . . . Escape Stasis . | . . . . . . . . . . . Rewire 155 | . . . . . . . 151 . . 4 Trap 5 | . . . . 5 . . . . . . Miscellaneous 8 | . . . . . . 8 . . . . Route ------- -11/Scrapyard -10/Materials (discovered 6 exits: *Mat x3 / [*Min x2] / [*Sub]) -10/Mines (discovered 3 exits: *Mat x2 / [*Sub]) -9/Materials (discovered 5 exits: *Mat x3 / *Min x2) -9/Mines (discovered 3 exits: *Mat x2 / [*Exi]) -8/Materials (discovered 3 exits: [*Fac x2] / *Sto) -8/Storage (discovered 2 exits: [*Fac] / *Rec) -8/Recycling (discovered 2 exits: *Fac / *Scr) -8/Scraptown (discovered 2 exits: *Fac x2) -6/Factory (discovered 4 exits: [*Fac x2] / *Low x2) -6/Lower Caves History --------- Turn | Location | Event 5 | -11/Scrapyard | Discovered new exit (range 15) 123 | -11/Scrapyard | Entered Materials 196 | -10/Materials | Discovered new exit (range 11) 314 | -10/Materials | Build established: Mutant 793 | -10/Materials | Discovered new exit (range 13) 988 | -10/Materials | Discovered new exit (range 4) 1136 | -10/Materials | Repaired Med. Armor Plating 1205 | -10/Materials | Discovered new exit (range 8) 1457 | -10/Materials | Discovered new exit (range 10) 2013 | -10/Materials | Discovered new exit (range 15) 2633 | -10/Materials | Entered Mines 2641 | -10/Mines | Met a Derelict bent on vengeance 2674 | -10/Mines | A weapon hastily lodged in a ceiling crevice suddenly fell to the ground 3009 | -10/Mines | Learned location of Zion (-7) 3098 | -10/Mines | Discovered new exit (range 7) 3537 | -10/Mines | Discovered new exit (range 5) 3809 | -10/Mines | Discovered new exit (range 8) 3828 | -10/Mines | Received a Rocket Launcher from a helpful Derelict 4215 | -10/Mines | Entered Materials 4215 | -9/Materials | Evolved 2 slots: Utility x2 5164 | -9/Materials | Identified exit to Mines 5280 | -9/Materials | Discovered new exit (range 5) 5379 | -9/Materials | Repaired Spread Laser+ 5406 | -9/Materials | Repaired Lgt. Treads 6319 | -9/Materials | Central database locked down 6558 | -9/Materials | Discovered new exit (range 12) 7769 | -9/Materials | Learned Storage stockpile data 7801 | -9/Materials | Learned Storage trap positions 7821 | -9/Materials | Learned Storage trap positions 7836 | -9/Materials | Learned location of Recycling (-8) 7837 | -9/Materials | Identified exit to Materials 8051 | -9/Materials | Entered Mines 8766 | -9/Mines | Found a hidden stash of uninstalled traps 8938 | -9/Mines | Assisted by bots powering up and referring to "LRC-V3" 9167 | -9/Mines | Deemed a non-threat by the Exiles lab entrance 9167 | -9/Mines | Discovered new exit (range 5) 9574 | -9/Mines | Learned 2 Materials zone layouts 10132 | -9/Mines | Entered Materials 10132 | -8/Materials | Accompanied by 1 ally 10132 | -8/Materials | Evolved 2 slots: Propulsion x1, Utility x1 10133 | -8/Materials | Identified exit to Storage 10569 | -8/Materials | Garrison activated, responded to threat 10696 | -8/Materials | Discovered new exit (range 16) 11542 | -8/Materials | Discovered new exit (range 16) 11713 | -8/Materials | Garrison activated, responded to threat 11941 | -8/Materials | Repaired Hrd. Medium Armor Plating 11981 | -8/Materials | Repaired Hrd. Medium Armor Plating 12042 | -8/Materials | Repaired Enh. Autogun 12076 | -8/Materials | Repaired Cooling System 12352 | -8/Materials | Entered Storage 12353 | -8/Storage | Loaded intel: 13 trap records 12520 | -8/Storage | Repaired Arm. Treads 12560 | -8/Storage | Repaired Arm. Treads 12599 | -8/Storage | Repaired Hrd. Medium Armor Plating 13778 | -8/Storage | Discovered new exit (range 12) 14002 | -8/Storage | Garrison activated, responded to threat 14361 | -8/Storage | Learned location of Lower Caves (-6) 14362 | -8/Storage | Assisted by bots powering up and referring to "LRC-V3" 14491 | -8/Storage | Identified exit to Recycling 14579 | -8/Storage | Learned Factory trap positions 14620 | -8/Storage | Garrison activated, responded to threat 14669 | -8/Storage | Build established: Commander-Mutant 15197 | -8/Storage | Repaired Reflective Plating 15237 | -8/Storage | Repaired Arm. Treads 15552 | -8/Storage | First assault squad dispatched 15623 | -8/Storage | Lost 10 allies 15702 | -8/Storage | Used back door to open Recycling access 15711 | -8/Storage | Entered Recycling 15711 | -8/Recycling | Accompanied by 2 allies 15885 | -8/Recycling | Build established: Mutant 15986 | -8/Recycling | Watched by a mysterious "MATRIX" hacker 16498 | -8/Recycling | Discovered new exit (range 15) 16550 | -8/Recycling | Build established: Commander-Mutant 17207 | -8/Recycling | Scanned before Scraplab entrance 17290 | -8/Recycling | Entered Scraplab 17335 | -8/Recycling | Discovered new exit (range 3) 17342 | -8/Recycling | Entered Scraptown 17342 | -8/Scraptown | Accompanied by 18 allies 17622 | -8/Scraptown | Heard Great Nut preacher, LISTEN AND RECITE! 17644 | -8/Scraptown | Visited Cave Peace 17723 | -8/Scraptown | Visited IN-MT5's Study 18245 | -8/Scraptown | Discovered new exit (range 4) 18400 | -8/Scraptown | Visited SPCMW 18450 | -8/Scraptown | Visited Junk Repository 18539 | -8/Scraptown | Visited CR-KLE's Repair Center 18556 | -8/Scraptown | CR-KLE repaired 7 parts 18592 | -8/Scraptown | Visited Symbiants 18677 | -8/Scraptown | Visited TADAMA 19455 | -8/Scraptown | Visited UFD Registry 19459 | -8/Scraptown | Registered with UFD as "Lasersplitter" 19545 | -8/Scraptown | Visited Science Guys 19660 | -8/Scraptown | Visited A0-MCA Data Center 19675 | -8/Scraptown | Given an A- rating by A0-MCA 19743 | -8/Scraptown | Visited Observation Area 19869 | -8/Scraptown | Visited DA-N13 Charitable Foundation 19895 | -8/Scraptown | Found DCF Scrap (28 items) 19927 | -8/Scraptown | Visited Curators Association 20076 | -8/Scraptown | Discovered new exit (range 3) 20303 | -8/Scraptown | Visited Derelict Rescue Squad 20363 | -8/Scraptown | Visited Abandonware Association 20406 | -8/Scraptown | Learned abandonware demo "REPAIR.EXE" 20484 | -8/Scraptown | Visited Science Testing Area 20520 | -8/Scraptown | Visited Junk Repository 21110 | -8/Scraptown | Met Optimus 21110 | -8/Scraptown | Accepted into 0bPrime 21267 | -8/Scraptown | Entered Factory 21267 | -6/Factory | Accompanied by 17 allies 21267 | -6/Factory | Evolved 4 slots: Power x1, Propulsion x1, Utility x1, Weapon x1 21268 | -6/Factory | Identified exit to Lower Caves 21269 | -6/Factory | Loaded intel: 108 trap records 21297 | -6/Factory | Garrison activated, responded to threat 21341 | -6/Factory | Lost 5 allies 21478 | -6/Factory | Lost 3 allies 21572 | -6/Factory | Build established: Commander-Tank 21869 | -6/Factory | Lost 3 allies 22122 | -6/Factory | Build established: Tank 23592 | -6/Factory | Discovered new exit (range 14) 23741 | -6/Factory | Build established: Hauler-Tank 23760 | -6/Factory | Repaired Arm. Treads 24034 | -6/Factory | Central database locked down 24767 | -6/Factory | First assault squad dispatched 25088 | -6/Factory | Loaded intel: 8 recycling unit locations 25280 | -6/Factory | Lost 3 parts (2n1u) 25299 | -6/Factory | Discovered new exit (range 4) 25373 | -6/Factory | Learned location of Protoforge (-2) 25613 | -6/Factory | Core integrity fell below 50% 25676 | -6/Factory | Released all parts (3) 25682 | -6/Factory | Core integrity fell below 20% 25687 | -6/Factory | Destroyed 12 combat bots 25706 | -6/Factory | Lost 20 parts (2p7n7u4w) 25741 | -6/Factory | Entered Lower Caves 25776 | -6/Lower Caves | Found DCF Scrap (11 items) 25910 | -6/Lower Caves | Encountered a Warlord checkpoint 26180 | -6/Lower Caves | Build established: Derelict-Gunner 26873 | -6/Lower Caves | Lost 3 parts (2n1w) 27146 | -6/Lower Caves | Build established: Derelict-Mutant 27278 | -6/Lower Caves | Attracted the attention of an 0b10 checkpoint 27280 | -6/Lower Caves | Destroyed by Y-54 Guardian with Flak Gun Last Messages --------------- 26883_ Acquired 9 matter. 26886_ System corrupted: Heat flow error (+225). 26940_ System corrupted: Matter fused (-5). 26962_ HEHPG%/NKR< VQYS7 DSKI=44CP 4 26996_ P9,N5A 1Y&LKSJD>% W&XKEIHQV 27036_ System corrupted: FCS attempts to trigger Hvy. Flak Cannon. 27036_ System corrupted: Hvy. Flak Cannon misfires. 27057_ System corrupted: IFF burst signal emitted. 27105_ System corrupted: Matter fused (-5). 27120_ System corrupted: IFF burst signal emitted. 27139_ SHU NVC%U6D64SB<>LY#6IW 27159_ DEQS6RTS9>KG1 EISGDSHQ6=MWL1R3N#KS9EN9RF 27176_ System corrupted: Energy discharge (-125). 27207_ System corrupted: Heat flow error (+138). 27233_ BB8|FXBUJ|1N/, XY9ZVPU,V:3/ 27275_ Prc. Beam Rifle destroyed. 27278_ Y-54 Guardian: "INTERCEPTING UNREGISTERED DERELICT." 27278_ S-27 Virus destroyed. 27280_ Lrn. Missile Launcher+ destroyed. 27280_ Deuterium Engine destroyed. Map ----- +----------------------------------------------------+ | ?????????????????????????????????????????????????? | | ?????????????????????????????????????????????????? | | ?????????????????????????????????????????????????? | | ?????????????????????????????????????????????????? | | ?????????????????????????????????????????????????? | | ?????????????????????????? ##????????????????????? | | ???????????????????????? ????????????????????? | | ????????????????????????? ????????????????????? | | ????????????????????????? ????????????????????? | | ?????????????????????????# #???????????????????? | | ?????????????????????????# #???????????????????? | | ?????????????????????????# #####???????????????? | | ?????????????????????????# # ?????## ??????? | | ?????????????????????????# ?????? ????? | | ?????????????????????????# #?????? ???? | | ?????????????????????????# #?????? ? | | ????????????? ??????##??## #?????? ? | | ????????????? ?????# ### ??????? ? | | ???????????? ???# ######?? ?? | | ???????????? b ??# ##? ?? | | ???????????? $ ???# #?# ? ?? | | ??????????? Ygl ?## #### #?# ? #?? | | ????????????# % ?## #??# #?# #? #?? | | ??????????????## ## #?## ### #?# #?? | | ??????????????# ### ## #?# #?? | | ???????????????# @ ## # #?# #?? | | ?????????????????## % ## #?# #?? | | ??????????????????## !%!##### ####### ### ### | | ???????????????????# ##????###?????## # | | ???????????????????# ???????????????## | | ?????????????????? ?????????????????## | | ????????????????? ???????????????????### # | | ????????????????# ??????????????????????#### ## | | ????????????????##?????????????????########## #? | | ???????????????????????????????????# #? | | ???????????????????????????????????# ## | | ???????????????????????????????????# ######## | | ??????????????????????????????????## #??????### | | ??????????????????????????????????# ##?##????## | | ??????????????????????????????????# #?# ###??### | | ??????????????????????????????????# ##? ##???? | | ?????????????????????????????????## ### #???? | | ???????????????????????????????### ## ##??? | | ??????????????????????????????## ##?# #??? | | ?????????????????????????????## ##??# #??# | | ?????????????????????????????# ####???# ## | | ?????????????????????????????## #?????## | | ????????????????????????###???## ##????# | | ???????????????????????## ###??# ##??## ### | | ???????????????????????# #### #### #??? | +----------------------------------------------------+ Best States ------------- Heat Dissipation 59 Energy Generation 31 Energy Capacity 510 Matter Stores 500 Matter Capacity 500 Sight Range 16 Terrain Scan Range 16 Terrain Scan Density 10 Armor Coverage 975 Resistance: TH 10 Evasion (%) 50 Recoil Reduction 4 Item Schematics ----------------- Cargo Storage Unit | -9/Materials | Hacked Hrd. Light Armor Plating | -9/Materials | Extracted Robot Schematics ------------------ None Fabricated ------------ Nothing Repaired ---------- Med. Armor Plating | 6% | -10/Materials Spread Laser | 26% | -9/Materials Lgt. Treads | 41% | -9/Materials Hrd. Medium Armor Plating | 32% | -8/Materials Hrd. Medium Armor Plating | 35% | -8/Materials Enh. Autogun | 33% | -8/Materials Cooling System | 42% | -8/Materials Arm. Treads | 52% | -8/Storage Arm. Treads | 67% | -8/Storage Hrd. Medium Armor Plating | 52% | -8/Storage Reflective Plating | 40% | -8/Storage Arm. Treads | 58% | -8/Storage Arm. Treads | 28% | -6/Factory Studied --------- Shotgun | -9/Materials | Hacked Spread Laser | -9/Materials | Hacked Rocket Launcher | -9/Materials | Hacked Beam Rifle | -9/Materials | Hacked Lrn. Missile Launcher | -6/Factory | Hacked Alien Tech Used ----------------- None Achievements -------------- Link The Feds Live, Flee, And Rebuild Professional Mechanic Challenges ------------ None Game ------ Seed WaveDefenseCarapace Manual? 0 Play Time 02:47:08 Cumulative 116.5 hours Start 2026.07.08 @ 08:44:18 End 2026.07.10 @ 23:33:53 Sessions 7 Manual Loads 0 Difficulty Rogue Special Mode None Game No. 115 Rogue 96 Adventurer 0 Explorer 19 Win Type - Total 2 Types 2/0/0/0/0/0/0/0/0/0 Lore% 60 Gallery% 50 Achievement% 49 Wizard Run 0 Options --------- Layout 0 ASCII 0 Keyboard 0 Movement Mouse Keybinds 0 Fullscreen 2 Font 18/SmallcapsGlow Map View 76x50 Zoom Use 0% Tactical HUD 1 Map Filters NONE Filters NONE Steam SD RUN: d7180e06-f29f-4b39-99d7-d86713d18d6c